Cogmind - Beta 13 @@@ ROGUE MODE // 2024.04.27 @ 23:35:56 Player: Jason Result: Destroyed by as-90592 with Assembled Blade Performance ------------- Evolutions (0) 0 Regions Visited (4) 800 Robots Destroyed (8) 40 Value Destroyed (180) 180 Prototype IDs (25) 500 Alien Tech Used (0) 0 Bonus (324) 324 TOTAL SCORE: 1844 Bonus ------- Follower Combat Kills 35 Aligned with FarCom 300 Friendly Fire -11 Cogmind --------- Core Integrity 0/250 Matter 300/300 Energy 100/100 System Corruption 0% Temperature Cool (0) Movement Core (50) Location -9/Mines Parts ------- > --- POWER (1) -------- (None) > --- PROPULSION (2) --- (None) > --- UTILITY (2) ------ (None) > --- WEAPON (2) ------- (None) > --- INVENTORY (5) ---- Flying Fortress v7 Large Matter Pod (150) Peak State ------------ > --- POWER ------------ Fission Core > --- PROPULSION ------- Aluminum Leg Aluminum Leg > --- UTILITY ---------- Medium Storage Unit Structural Scanner > --- WEAPON ----------- Beam Cannon Assault Rifle > --- INVENTORY -------- Light Ion Engine Flying Fortress v7 Medium Matter Pod Large Matter Pod ECM Suite Medium Laser Light Assault Rifle [Rating: 14] Favorites ----------- Power Ion Engine Engine Ion Engine Power Core Fission Core Propulsion Aluminum Leg Leg Aluminum Leg Wheel Wheel Utility Structural Scanner Device Structural Scanner Storage Small Storage Unit Weapon Assault Rifle Energy Gun Medium Laser Energy Cannon Beam Cannon Ballistic Gun Assault Rifle Build | -11 -10 -10 -10 -9 ------- Run | Yrd Mat Min Exi Min Slots Evolved . | . . . . . Power . | . . . . . Propulsion . | . . . . . Utility . | . . . . . Weapon . | . . . . . Parts Attached 19 | 7 7 1 1 3 Power 4 | 2 1 . . 1 Engine 3 | 2 1 . . . Core 1 | . . . . 1 Reactor . | . . . . . Propulsion 4 | 2 2 . . . Treads . | . . . . . Leg 2 | . 2 . . . Wheel 2 | 2 . . . . Hover . | . . . . . Flight . | . . . . . Utility 5 | 1 2 1 1 . Device 2 | . 1 1 . . Storage 3 | 1 1 . 1 . Processor . | . . . . . Hackware . | . . . . . Protection . | . . . . . Artifact . | . . . . . Weapon 6 | 2 2 . . 2 Energy Gun 2 | 1 1 . . . Energy Cannon 1 | . . . . 1 Ballistic Gun 3 | 1 1 . . 1 Ballistic Cannon . | . . . . . Launcher . | . . . . . Special Weapon . | . . . . . Impact Weapon . | . . . . . Slashing Weapon . | . . . . . Piercing Weapon . | . . . . . Special Melee Weapon . | . . . . . Unidentified Prototypes . | . . . . . Parts Lost 10 | . 4 . . 6 Power 2 | . 1 . . 1 Propulsion 4 | . 2 . . 2 Utility . | . . . . . Weapon 4 | . 1 . . 3 Highest Loss Streak 6 | . 3 . . 6 To Critical Strikes . | . . . . . Average Slot Usage (%) 98 | . 92 100 100 98 Engine 13 | . 14 14 14 12 Leg 22 | . 1 28 28 27 Wheel 5 | . 25 . . . Device 12 | . 7 14 14 14 Storage 14 | . 14 14 14 14 Energy Gun 9 | . 14 14 14 1 Energy Cannon 4 | . . . . 11 Ballistic Gun 14 | . 14 14 14 14 Naked Turns 4 | . . . . 4 Heaviest Build 26 | 13 16 16 20 26 Greatest Support 26 | 26 26 20 20 20 Greatest Overweight (x) 2 | 1 . . . 2 Average Overweight (x) . | . . . . . Largest Inventory Capacity 10 | 8 8 8 10 10 Average Capacity 8 | 7 8 8 8 9 Most Carried 10 | 4 7 6 8 10 Average Carried 6 | 1 5 4 6 9 Final Capacity 10 | 8 8 8 10 5 Final Carried 8 | 4 4 6 8 5 Class Distribution -------------------- 100% | Mutant Dominant Class ---------------- Mutant | -10/Materials Mutant | -10/Mines Mutant | -10/Exiles Mutant | -9/Mines Resources | -11 -10 -10 -10 -9 ----------- Run | Yrd Mat Min Exi Min Matter Collected 562 | 197 183 66 39 77 Remotely . | . . . . . Salvage Created 279 | . 228 . . 51 Parts 14 | . 14 . . . Haulers Intercepted . | . . . . . Recyclers Shooed . | . . . . . Parts Field Recycled . | . . . . . Retrieved Matter . | . . . . . Parts Self-Destructed . | . . . . . Prevented . | . . . . . Kills | -11 -10 -10 -10 -9 ------- Run | Yrd Mat Min Exi Min Combat Hostiles Destroyed 11 | . 7 . . 4 Guns 7 | . 4 . . 3 Cannons 1 | . . . . 1 AOE 2 | . 2 . . . Classes Destroyed 4 | . 3 . . 1 Worker 1 | . 1 . . . Swarmer 3 | . 3 . . . Grunt 4 | . 4 . . . Assembled 4 | . . . . 4 Best Kill Streak 4 | . 3 . . 4 Combat Bots Only 4 | . 3 . . 4 Max Kills in Single Turn 2 | . 2 . . 1 Gunslinging . | . . . . . Exploded 2 | . 2 . . . Melee . | . . . . . Uniques/NPCs Destroyed . | . . . . . Combat | -11 -10 -10 -10 -9 -------- Run | Yrd Mat Min Exi Min Hostile Shots Fired 93 | . 56 . . 37 Missed 21 | . 15 . . 6 Damage Taken 1110 | . 536 . . 574 Core 275 | . 201 . . 74 Absorbed by Shields . | . . . . . Core Remaining (%) 100 | 100 . . . . Volleys Fired 45 | . 29 . . 16 Largest 2 | . 2 . . 2 Hottest 80 | . 70 . . 80 Shots Fired 89 | . 57 . . 32 Gun 76 | . 57 . . 19 Cannon 13 | . . . . 13 Launcher . | . . . . . Special . | . . . . . Kinetic 48 | . 29 . . 19 Thermal 29 | . 16 . . 13 Explosive . | . . . . . Electromagnetic 12 | . 12 . . . Robot Hit Streak 11 | . 11 . . 6 Robot Miss Streak 4 | . 4 . . 4 Penetration Max . | . . . . . Secondary Targets . | . . . . . Shots Hit Robots 56 | . 42 . . 14 Core Hits 22 | . 14 . . 8 Critical Kills . | . . . . . Critical Parts Destroyed . | . . . . . Critical Strikes 2 | . 2 . . . Burn 2 | . 2 . . . Melee Attacks . | . . . . . Impact . | . . . . . Slashing . | . . . . . Piercing . | . . . . . Sneak Attacks . | . . . . . Combat Hostiles . | . . . . . Follow-up Attacks . | . . . . . Damage Inflicted 731 | . 525 9 . 197 Guns 583 | . 472 . . 111 Cannons 86 | . . . . 86 Explosions 53 | . 53 . . . Melee . | . . . . . Ramming 9 | . . 9 . . Kinetic 302 | . 191 . . 111 Thermal 301 | . 215 . . 86 Explosive . | . . . . . Electromagnetic 119 | . 119 . . . Impact . | . . . . . Slashing . | . . . . . Piercing . | . . . . . Highest Corruption . | . . . . . Average Corruption . | . . . . . Corruption Purged . | . . . . . Corruption Blocked . | . . . . . Overload Shots . | . . . . . Overflow Damage . | . . . . . Projectiles . | . . . . . Explosions . | . . . . . Melee . | . . . . . Knockbacks . | . . . . . Impact . | . . . . . Kinetic . | . . . . . Secondary . | . . . . . Self-Inflicted Damage 19 | . 19 . . . Shots 1 | . 1 . . . Rammed . | . . . . . Targets Rammed 2 | . . 2 . . Kicked 2 | . . 2 . . Crushed . | . . . . . Highest Temperature 175 | . 126 . . 175 Average Temperature 56 | . 41 . . 79 Received Heat Transfer 344 | . 264 . . 80 Siege Activations . | . . . . . Robots Corrupted . | . . . . . Combat Hostiles . | . . . . . Parts Fried . | . . . . . Impact Corruptions . | . . . . . Robots Melted 1 | . 1 . . . Combat Hostiles 1 | . 1 . . . Parts Melted 2 | . 2 . . . Heat Transferred 864 | . 679 . . 185 Parts Sabotaged . | . . . . . Parts Stolen . | . . . . . Parts Stripped . | . . . . . Power Chain Reactions 1 | . 1 . . . Alert | -11 -10 -10 -10 -9 ------- Run | Yrd Mat Min Exi Min Peak Influence 253 | . 253 86 . 59 Initial 8 | . . 8 . . Average 46 | . 108 45 . 14 Maximum Alert Level 1 | . 1 . . . Low Security (%) 92 | 100 74 100 . 100 Level 1 7 | . 25 . . . Level 2 . | . . . . . Level 3 . | . . . . . Level 4 . | . . . . . Level 5 . | . . . . . High Security . | . . . . . Max Security . | . . . . . Squads Dispatched 1 | . 1 . . . Investigation 1 | . 1 . . . Extermination . | . . . . . Reinforcement . | . . . . . Assault . | . . . . . Garrison . | . . . . . Intercept . | . . . . . Searches Triggered . | . . . . . Construction Impeded . | . . . . . Haulers Reinforced . | . . . . . Active Scanning Responses . | . . . . . Cargo Convoy Interrupts . | . . . . . Stealth | -11 -10 -10 -10 -9 --------- Run | Yrd Mat Min Exi Min Distress Signals 3 | . 1 . . 2 Communications Jammed . | . . . . . Distress Signals . | . . . . . Times Spotted 39 | . 21 3 . 15 Peak Tracking Total 8 | . 5 2 . 8 Tactical Retreats 7 | . 4 1 . 2 Traps | -11 -10 -10 -10 -9 ------- Run | Yrd Mat Min Exi Min Traps Triggered . | . . . . . Indirectly . | . . . . . Trap Hack Attempts . | . . . . . Triggered . | . . . . . Disarmed . | . . . . . Reprogrammed . | . . . . . Reused . | . . . . . Traps Extracted . | . . . . . Installed . | . . . . . Triggered . | . . . . . Machines | -11 -10 -10 -10 -9 ---------- Run | Yrd Mat Min Exi Min Machines Disabled . | . . . . . Max in Single Turn . | . . . . . Machines Repaired . | . . . . . Machines Dismantled . | . . . . . Machines Sabotaged . | . . . . . Overloaded Fab Kills . | . . . . . Hacking | -11 -10 -10 -10 -9 --------- Run | Yrd Mat Min Exi Min Machines Accessed 4 | . 2 . 2 . Terminals 2 | . 2 . . . Fabricators . | . . . . . Repair Stations . | . . . . . Recycling Units . | . . . . . Scanalyzers . | . . . . . Garrison Access . | . . . . . Total Hacks 15 | . 10 . 5 . Successful 12 | . 7 . 5 . Failed 3 | . 3 . . . Catastrophic . | . . . . . Database Lockouts . | . . . . . Manual 6 | . 5 . 1 . Terminals 10 | . 10 . . . Fabricators . | . . . . . Repair Stations . | . . . . . Recycling Units . | . . . . . Scanalyzers . | . . . . . Garrison Access . | . . . . . Terminal Hacks 10 | . 5 . 5 . Record 4 | . . . 4 . Prototype ID Bank 1 | . 1 . . . Branch Access Points 1 | . 1 . . . Locate Traps 1 | . 1 . . . Dispatch Records 1 | . 1 . . . Zone Layout 1 | . 1 . . . Derelict Proto ID Bank 1 | . . . 1 . Fabricator Hacks . | . . . . . Repair Station Hacks . | . . . . . Recycling Unit Hacks . | . . . . . Scanalyzer . | . . . . . Garrison Access Hacks . | . . . . . Unauthorized Hacks 2 | . 2 . . . Terminals 2 | . 2 . . . Botnet 2 | . 2 . . . Fabricators . | . . . . . Repair Stations . | . . . . . Recycling Units . | . . . . . Scanalyzers . | . . . . . Garrison Access . | . . . . . Data Cores Recovered . | . . . . . Used . | . . . . . Hacking Detections 2 | . 2 . . . Full Trace Events 2 | . 2 . . . Feedback Events . | . . . . . Feedback Blocked . | . . . . . Robot Schematics Acquired . | . . . . . Robots Built . | . . . . . Authchips . | . . . . . Time . | . . . . . Total Robot Build Rating . | . . . . . Part Schematics Acquired . | . . . . . Parts Built . | . . . . . Authchips . | . . . . . Time . | . . . . . Total Part Build Rating . | . . . . . Parts Repaired . | . . . . . Time . | . . . . . Parts Recycled . | . . . . . Recycled Matter . | . . . . . Retrieved Matter . | . . . . . Retrieved Components . | . . . . . Parts Scanalyzed . | . . . . . Part Schematics Acquired . | . . . . . Parts Damaged . | . . . . . Bothacking | -11 -10 -10 -10 -9 ------------ Run | Yrd Mat Min Exi Min Used RIF Installer . | . . . . . Robots Hacked . | . . . . . Non-combat . | . . . . . Combat . | . . . . . Robot Hacks Applied . | . . . . . Relay Couplers Released . | . . . . . Fabnet Peak Effective % . | . . . . . Robots Rewired . | . . . . . Allies Hacked . | . . . . . Hacks Repelled . | . . . . . Allies | -11 -10 -10 -10 -9 -------- Run | Yrd Mat Min Exi Min Total Allies 5 | . . 5 . . Largest Group 5 | . . 5 5 3 Highest-Rated Group 80 | . . 80 80 40 Highest-Rated Ally 31 | . . 31 31 16 Total Orders . | . . . . . Ally Attacks 21 | . . 9 . 12 Total Damage 187 | . . 74 . 113 Kills 6 | . . 3 . 3 Allies Corrupted . | . . . . . Allies Melted . | . . . . . Intel | -11 -10 -10 -10 -9 ------- Run | Yrd Mat Min Exi Min Robot Analysis Total . | . . . . . Derelict Logs Recovered 3 | . . 1 . 2 Drone Launches . | . . . . . Drone Recoveries . | . . . . . Exploration | -11 -10 -10 -10 -9 ------------- Run | Yrd Mat Min Exi Min Turns Passed 2693 | 66 543 394 760 930 Spaces Moved 1853 | 61 411 300 630 451 Core 10 | 2 . . . 8 Treads . | . . . . . Legs 1383 | . 10 300 630 443 Wheels 460 | 59 401 . . . Hover . | . . . . . Flight . | . . . . . Fastest Speed 50 | 50 90 120 120 50 Average Speed 126 | 86 91 120 120 177 Slowest Speed 260 | 95 120 120 120 260 Overloaded Moves . | . . . . . Propulsion Burnouts . | . . . . . Robots Hopped . | . . . . . Cave-ins Triggered . | . . . . . Exploration Rate (%) 52 | 4 46 52 91 68 Regions Visited 4 Branch Regions 3 Pre-discovered Areas 1 | . . . 1 . Known Exits Taken 1 | . 1 . . . Unknown Exits Taken 3 | 1 . 1 1 . Scrap Searched 3 | . . 1 . 2 Spaces Dug . | . . . . . Terrain Destroyed 2 | . 2 . . . Melee . | . . . . . Projectile . | . . . . . AOE 2 | . 2 . . . Terrain Rammed . | . . . . . Walls Destroyed . | . . . . . Machines Disabled . | . . . . . Actions | -11 -10 -10 -10 -9 --------- Run | Yrd Mat Min Exi Min Total 2114 | 70 526 333 636 549 Wait 181 | . 76 29 . 76 Move 1849 | 60 410 299 629 451 Hop . | . . . . . Pick Up 12 | 3 4 2 2 1 Fast Attach 7 | 6 . . . 1 Attach 6 | . 5 . . 1 Detach 1 | . . . . 1 Swap 6 | 1 2 1 1 1 Drop 5 | . . . 4 1 Fire 45 | . 29 . . 16 Melee . | . . . . . Ram . | . . . . . Kick 2 | . . 2 . . Crush . | . . . . . Escape Stasis . | . . . . . Rewire . | . . . . . Trap . | . . . . . Miscellaneous . | . . . . . Route ------- -11/Scrapyard -10/Materials (discovered 3 exits: [*Mat] / *Min x2) -10/Mines (discovered 2 exits: [*Mat] / *Exi) -10/Exiles -9/Mines History --------- Turn | Location | Event 16 | -11/Scrapyard | Discovered new exit (range 15) 67 | -11/Scrapyard | Entered Materials 78 | -10/Materials | Discovered new exit (range 8) 268 | -10/Materials | Discovered new exit (range 14) 268 | -10/Materials | Identified exit to Mines 330 | -10/Materials | Build established: Mutant 404 | -10/Materials | Core integrity fell below 50% 603 | -10/Materials | Core integrity fell below 20% 610 | -10/Materials | Entered Mines 614 | -10/Mines | Lost 3 parts (1p2n) 750 | -10/Mines | Assisted by bots powering up and referring to "LRC-V3" 871 | -10/Mines | Discovered new exit (range 16) 971 | -10/Mines | Deemed a non-threat by the Exiles lab entrance 971 | -10/Mines | Discovered new exit (range 6) 1004 | -10/Mines | Entered Exiles 1004 | -10/Exiles | Accompanied by 5 allies 1034 | -10/Exiles | Led the pair of lost Derelicts to a safe place 1051 | -10/Exiles | Met 8R-AWN 1076 | -10/Exiles | Met EX-HEX 1147 | -10/Exiles | Met EX-DEC 1179 | -10/Exiles | Visited The Gauntlet 1354 | -10/Exiles | Learned location of Zion (-7) 1403 | -10/Exiles | Met EX-BIN 1434 | -10/Exiles | Aligned with FarCom system 1435 | -10/Exiles | Given EX-Vault access code 1471 | -10/Exiles | Opened EX-Vault 1488 | -10/Exiles | Found Flying Fortress v7 1534 | -10/Exiles | Warned to stay clear of 0b10 Research branches 1741 | -10/Exiles | Discovered new exit (range 14) 1764 | -10/Exiles | Left Exiles lab with Flying Fortress v7 1764 | -10/Exiles | Entered Mines 1764 | -9/Mines | Accompanied by 3 allies 1804 | -9/Mines | Learned 8 Materials zone layouts 2556 | -9/Mines | Assembled infested the area 2561 | -9/Mines | Assisted by a Guerilla fighting off Assembled 2658 | -9/Mines | Lost 3 allies 2690 | -9/Mines | Released all parts (2) 2694 | -9/Mines | Destroyed by as-90592 with Assembled Blade Last Messages --------------- 02656_ Acquired 10 matter. 02657_ Acquired 1 matter. 02661_ Acquired 7 matter. 02671_ K-01 Serf collects debris. 02675_ Aluminum Leg destroyed. 02678_ K-01 Serf collects debris. 02678_ Assault Rifle destroyed. 02678_ Fission Core destroyed. 02680_ K-01 Serf collects debris. 02681_ as-76606 sneak attacks. 02682_ Lgt. Assault Rifle destroyed. 02684_ K-01 Serf destroyed. 02687_ R-06 Scavenger destroyed. 02688_ Aluminum Leg destroyed. 02690_ Released Structural Scanner. 02690_ Released Med. Storage Unit. 02692_ as-94543 sneak attacks. 02692_ T-07 Excavator system corrupted by crushing effect. 02692_ T-07 Excavator destroyed. Map ----- +----------------------------------------------------+ | ??## ##??????????????????????? | | ??### """ ##??????????????????????? | | ???#### """ ###??????????????????????? | | ???##### """ #####??????????????????????? | | ?????### ########???????????????????????? | | ??????## #######?????????????????????????? | | ######## ####?????????????????????????????? | | ######### ####??????????????????????????????? | | ## ##### ####???????????????????????????????? | | # ### ####???????????????????????????????? | | # ####?????######?????????#### #????? | | # ######?###################!###???? | | ## ######### ##########!=%=####???? | | ## *##### % %*!=%=!%*!%]!=%% | | ## ### =%= = ################ ???? | | ### ##### !== =% ################ ???? | | ########### ! ###??????????????????? | | ?######?### ####??????????????????? | | ?????????### ####???????????????????? | | ?????????#### * ###????????????????????? | | ??????????#### !![##?????????????????????? | | ???????????#### !a ##?????????????????????? | | ????????????#### a###?????????????????????? | | ?????????????### ### =a ###?????????????????????? | | ????????????? # ##### a #####??????????????????? | | ????????????? ###### @ #??????????????????? | | ???????????# ####?## ##??????????????????? | | ???????????######???### ####??????????????????? | | ???????????#####????###########??????????????????? | | ?????????????????????########????????????????????? | | ?????????????????????????????????????????????????? | | ?????????????????????????????????????????????????? | | ?????????????????????????????????????????????????? | | ?????????????????????????????????????????????????? | | ?????????????????????????????????????????????????? | | ?????????????????????????????????????????????????? | | ?????????????????????????????????????????????????? | | ?????????????????????????????????????????????????? | | | | | | | | | | | | | | | | | | | | | | | | | +----------------------------------------------------+ Best States ------------- Heat Dissipation 25 Energy Generation 18 Energy Capacity 310 Matter Stores 300 Matter Capacity 400 Sight Range 16 Terrain Scan Density 10 ECM Strength 1 Evasion (%) 55 Item Schematics ----------------- None Robot Schematics ------------------ None Fabricated ------------ Nothing Alien Tech Used ----------------- None Achievements -------------- The More The Merrier Challenges ------------ None Game ------ Seed EtherialRegenerativeScythe Manual? 0 Play Time 00:19:25 Cumulative 39.0 hours Start 2024.04.27 @ 23:05:20 End 2024.04.27 @ 23:35:56 Sessions 1 Manual Loads 0 Difficulty Rogue Special Mode None Game No. 34 Rogue 34 Adventurer 0 Explorer 0 Win Type - Total 0 Types 0/0/0/0/0/0/0/0/0 Lore% 19 Gallery% 27 Achievement% 19 Wizard Run 0 Options --------- Layout 2 ASCII 0 Keyboard 1 Movement Arrows Keybinds 0 Fullscreen 2 Font 24/Smallcaps Map View 50x44 Zoom Use 0% Tactical HUD 1 Map Filters NONE Filters NONE Steam 1 RUN: b96aa90e-9f98-41d5-b632-cc28931ab4ee